fUSD/lending_fUSD_20240910
["ID","MTS","AMOUNT","RATE_DAILY","PERIOD"]
[337666007,1725933041187,-151.0,0.00012576,2]
[337666009,1725933041197,-251.068192,0.00012576,2]
[337666011,1725933041207,-18570.12,0.00012576,2]
[337666013,1725933041216,-4769.07,0.00012576,2]
[337666015,1725933041226,-151.0,0.00012576,2]
[337666017,1725933041236,-151.0,0.00012576,2]
[337666019,1725933041246,-151.0,0.00012576,2]
[337666021,1725933041256,-4082.67,0.00012576,2]
[337666023,1725933041266,-192.32699,0.00012576,2]
[337666024,1725933041276,-192.32699,0.00012576,2]
[337666026,1725933041287,-192.32699,0.00012576,2]
[337666028,1725933041297,-18017.13,0.00012576,2]
[337666030,1725933041307,-192.32699,0.00012576,2]
[337666032,1725933041317,-28448.18,0.00012576,2]
[337666034,1725933041327,-4272.35,0.00012576,2]
[337666037,1725933041352,-2799.2,0.00012576,2]
[337666039,1725933041367,-151.0,0.00012576,2]
[337666041,1725933041377,-151.0,0.00012576,2]
[337666043,1725933041387,-11541.76,0.00012576,2]
[337666045,1725933041397,-9653.54,0.00012576,2]
[337666047,1725933041407,-81552.88,0.00012576,2]
[337666049,1725933041418,-500.0,0.00012576,2]
[337666051,1725933041428,-15633.87,0.00012576,2]
[337666053,1725933041438,-619.58,0.00012576,2]
[337666055,1725933041449,-5523.59,0.00012576,2]
[337666057,1725933041459,-2583.17,0.00012576,2]
[337666059,1725933041469,-151.0,0.00012576,2]
[337666061,1725933041479,-192.00264136,0.00012577,2]
[337666063,1725933041489,-500.0,0.00012577,2]
[337666065,1725933041499,-500.0,0.00012577,2]
[337666067,1725933041509,-500.0,0.00012577,2]
[337666069,1725933041520,-500.0,0.00012577,2]
[337666071,1725933041530,-500.0,0.00012577,2]
[337666073,1725933041539,-500.0,0.00012577,2]
[337666075,1725933041549,-500.0,0.00012577,2]
[337666077,1725933041559,-554.98980866,0.00012577,2]
[337666078,1725933041568,-500.0,0.00012577,2]
[337666080,1725933041577,-565.91050327,0.00012577,2]
[337666082,1725933041587,-500.0,0.00012577,2]
[337666084,1725933041597,-500.0,0.00012577,2]
[337666086,1725933041608,-500.0,0.00012577,2]
[337666088,1725933041618,-1784.11,0.00012577,2]
[337666090,1725933041629,-639.65853868,0.00012577,2]
[337666092,1725933041639,-500.0,0.00012577,2]
[337666094,1725933041649,-500.0,0.00012577,2]
[337666124,1725933041919,-575.54910351,0.00012577,2]
[337666127,1725933041955,-500.0,0.00012577,2]
[337666130,1725933041966,-500.0,0.00012577,2]
[337666132,1725933041975,-502.74507072,0.00012577,2]
[337666134,1725933041987,-500.0,0.00012577,2]
[337666136,1725933041999,-500.0,0.00012577,2]
[337666138,1725933042008,-500.0,0.00012577,2]
[337666140,1725933042018,-500.0,0.00012577,2]
[337666142,1725933042027,-500.0,0.00012577,2]
[337666144,1725933042038,-521.34505351,0.00012577,2]
[337666145,1725933042047,-500.0,0.00012577,2]
[337666147,1725933042057,-500.79078466,0.00012577,2]
[337666150,1725933042067,-500.0,0.00012577,2]
[337666152,1725933042077,-151.0,0.00012577,2]
[337666154,1725933042086,-207.892372,0.00012577,2]
[337666155,1725933042096,-151.0,0.00012577,2]
[337666157,1725933042105,-198.575917,0.00012577,2]
[337666159,1725933042115,-198.575917,0.00012577,2]
[337666162,1725933042130,-151.0,0.00012577,2]
[337666164,1725933042139,-151.0,0.00012577,2]
[337666166,1725933042149,-342.29416025,0.00012577,2]
[337666168,1725933042159,-312.377615,0.00012577,2]
[337666170,1725933042168,-312.377615,0.00012577,2]
[337666172,1725933042179,-518.384778,0.00012577,2]
[337666174,1725933042189,-518.384778,0.00012577,2]
[337666176,1725933042198,-151.0,0.00012577,2]
[337666178,1725933042208,-151.0,0.00012577,2]
[337666180,1725933042218,-1219.9,0.00012577,2]
[337666182,1725933042228,-180.014303,0.00012577,2]
[337666184,1725933042238,-180.014303,0.00012577,2]
[337666186,1725933042249,-500.0,0.00012577,2]
[337666188,1725933042262,-708.42,0.00012577,2]
[337666191,1725933042273,-272.79259517,0.00012577,2]
[337666193,1725933042282,-151.0,0.00012577,2]
[337666195,1725933042293,-151.0,0.00012577,2]
[337666197,1725933042304,-151.0,0.00012577,2]
[337666199,1725933042314,-151.0,0.00012577,2]
[337666201,1725933042324,-151.272751,0.00012577,2]
[337666203,1725933042333,-151.0,0.00012577,2]
[337666205,1725933042343,-151.0,0.00012577,2]
[337666207,1725933042353,-151.0,0.00012577,2]
[337666209,1725933042363,-500.0,0.00012577,2]
[337666211,1725933042372,-151.0,0.00012577,2]
[337666213,1725933042382,-203.000913,0.00012577,2]
[337666215,1725933042392,-203.000913,0.00012577,2]
[337666217,1725933042402,-203.000913,0.00012577,2]
[337666219,1725933042411,-203.000913,0.00012577,2]
[337666221,1725933042422,-203.000913,0.00012577,2]
[337666223,1725933042432,-203.000913,0.00012577,2]
[337666225,1725933042441,-392.055159,0.00012577,2]
[337666227,1725933042451,-392.055159,0.00012577,2]
[337666229,1725933042461,-392.055159,0.00012577,2]
[337666231,1725933042470,-392.055159,0.00012577,2]
[337666233,1725933042480,-392.055159,0.00012577,2]
[337666235,1725933042490,-392.055159,0.00012577,2]
[337666237,1725933042499,-500.0,0.00012577,2]
[337666239,1725933042510,-425.24143,0.00012577,2]
[337666241,1725933042520,-425.24143,0.00012577,2]
[337666243,1725933042529,-425.24143,0.00012577,2]
[337666245,1725933042539,-425.24143,0.00012577,2]
[337666247,1725933042549,-195.963856,0.00012577,2]
[337666249,1725933042559,-195.963856,0.00012577,2]
[337666251,1725933042569,-160.811902,0.00012577,2]
[337666253,1725933042579,-195.963856,0.00012577,2]
[337666255,1725933042588,-195.963856,0.00012577,2]
[337666257,1725933042598,-500.0,0.00012577,2]
[337666259,1725933042609,-500.0,0.00012577,2]
[337666261,1725933042619,-1966.87,0.00012577,2]
[337666263,1725933042628,-853.78,0.00012577,2]
[337666265,1725933042638,-294.070089,0.00012577,2]
[337666267,1725933042648,-2150.57,0.00012577,2]
[337666269,1725933042657,-214.451037,0.00012577,2]
[337666271,1725933042667,-214.451037,0.00012577,2]
[337666273,1725933042677,-214.451037,0.00012577,2]
[337666275,1725933042687,-214.451037,0.00012577,2]
[337666277,1725933042696,-214.451037,0.00012577,2]
[337666279,1725933042706,-214.451037,0.00012577,2]
[337666281,1725933042715,-151.0,0.00012577,2]
[337666283,1725933042725,-151.0,0.00012577,2]
[337666285,1725933042734,-151.0,0.00012577,2]
[337666287,1725933042744,-151.0,0.00012577,2]
[337666289,1725933042754,-798.06,0.00012577,2]
[337666291,1725933042765,-500.0,0.00012577,2]
[337666293,1725933042774,-500.0,0.00012577,2]
[337666295,1725933042785,-151.0,0.00012577,2]
[337666297,1725933042795,-151.0,0.00012577,2]
[337666299,1725933042804,-151.0,0.00012577,2]
[337666301,1725933042815,-500.0,0.00012577,2]
[337666303,1725933042824,-363.93363957,0.00012577,2]
[337666305,1725933042834,-151.0,0.00012577,2]
[337666307,1725933042844,-151.0,0.00012577,2]
[337666309,1725933042853,-151.0,0.00012577,2]
[337666311,1725933042863,-567.70773515,0.00012577,2]
[337666313,1725933042872,-151.0,0.00012577,2]
[337666315,1725933042882,-256.794255,0.00012577,2]
[337666317,1725933042891,-151.0,0.00012577,2]
[337666319,1725933042901,-151.0,0.00012577,2]
[337666321,1725933042910,-151.0,0.00012577,2]
[337666323,1725933042920,-279.724276,0.00012577,2]
[337666325,1725933042929,-512.053026,0.00012577,2]
[337666327,1725933042939,-512.053026,0.00012577,2]
[337666329,1725933042954,-500.0,0.00012577,2]
[337666331,1725933042963,-512.053026,0.00012577,2]
[337666333,1725933042973,-894.7,0.00012577,2]
[337666335,1725933042982,-512.053026,0.00012577,2]
[337666336,1725933042993,-512.053026,0.00012577,2]
[337666338,1725933043002,-512.053026,0.00012577,2]
[337666340,1725933043012,-503.11803803,0.00012577,2]
[337666342,1725933043022,-10044.89,0.00012577,2]
[337666345,1725933043033,-821.89,0.00012577,2]
[337666347,1725933043042,-500.0,0.00012577,2]
[337666349,1725933043052,-10866.67,0.00012577,2]
[337666351,1725933043064,-151.0,0.00012577,2]
[337666353,1725933043076,-151.0,0.00012577,2]
[337666355,1725933043086,-2120.59,0.00012577,2]
[337666357,1725933043096,-516.199678,0.00012577,2]
[337666359,1725933043106,-516.199678,0.00012577,2]
[337666361,1725933043117,-1779.03,0.00012577,2]
[337666363,1725933043129,-516.199678,0.00012577,2]
[337666365,1725933043139,-516.199678,0.00012577,2]
[337666367,1725933043149,-13675.51,0.00012577,2]
[337666369,1725933043159,-500.0,0.00012577,2]
[337666371,1725933043170,-151.0,0.00012577,2]
[337666373,1725933043181,-151.0,0.00012577,2]
[337666376,1725933043192,-500.0,0.00012577,2]
[337666377,1725933043202,-2252.69,0.00012577,2]
[337666379,1725933043212,-151.0,0.00012577,2]
[337666381,1725933043222,-203.061817,0.00012577,2]
[337666383,1725933043232,-1351.75,0.00012577,2]
[337666385,1725933043242,-7219.93,0.00012577,2]
[337666387,1725933043253,-500.0,0.00012577,2]
[337666389,1725933043263,-500.0,0.00012577,2]
[337666391,1725933043272,-7332.320303,0.00012577,2]
[337666393,1725933043283,-7332.320303,0.00012577,2]
[337666395,1725933043293,-4711.03,0.00012577,2]
[337666397,1725933043303,-16318.33,0.00012577,2]
[337666399,1725933043313,-2085.7,0.00012577,2]
[337666401,1725933043323,-77116.47,0.00012577,2]
[337666403,1725933043334,-500.0,0.00012577,2]
[337666405,1725933043343,-1503.33409,0.00012577,2]
[337666407,1725933043353,-1503.33409,0.00012577,2]
[337666409,1725933043363,-151.0,0.00012577,2]
[337666411,1725933043374,-1503.33409,0.00012577,2]
[337666413,1725933043384,-151.0,0.00012577,2]
[337666415,1725933043394,-500.0,0.00012577,2]
[337666417,1725933043404,-1503.33409,0.00012577,2]
[337666419,1725933043414,-1503.33409,0.00012577,2]
[337666421,1725933043424,-1503.33409,0.00012577,2]
[337666423,1725933043434,-151.0,0.00012577,2]
[337666425,1725933043444,-151.0,0.00012577,2]
[337666427,1725933043454,-4832.04,0.00012577,2]
[337666429,1725933043464,-500.0,0.00012577,2]
[337666430,1725933043476,-151.0,0.00012577,2]
[337666432,1725933043486,-151.0,0.00012577,2]
[337666434,1725933043496,-500.66358288,0.00012577,2]
[337666436,1725933043506,-501.78172101,0.00012577,2]
[337666439,1725933043518,-13090.72,0.00012577,2]
[337666441,1725933043527,-9743.41,0.00012577,2]
[337666443,1725933043537,-151.0,0.00012577,2]
[337666445,1725933043548,-151.0,0.00012577,2]
[337666447,1725933043559,-500.81460871,0.00012577,2]
[337666449,1725933043569,-4326.81,0.00012577,2]
[337666451,1725933043578,-151.0,0.00012577,2]
[337666452,1725933043588,-151.0,0.00012577,2]
[337666454,1725933043598,-151.0,0.00012577,2]
[337666456,1725933043608,-151.0,0.00012577,2]
[337666457,1725933043617,-5119.72,0.00012577,2]
[337666458,1725933043627,-5462.21,0.00012577,2]
[337666459,1725933043637,-500.0,0.00012577,2]
[337666460,1725933043647,-12189.13,0.00012577,2]
[337666461,1725933043656,-2262.78,0.00012577,2]
[337666463,1725933043667,-151.0,0.00012577,2]
[337666465,1725933043676,-151.0,0.00012577,2]
[337666467,1725933043687,-151.924333,0.00012577,2]
[337666469,1725933043696,-160.946631,0.00012577,2]
[337666471,1725933043706,-160.946631,0.00012577,2]
[337666473,1725933043716,-31823.36,0.00012577,2]
[337666475,1725933043726,-160.946631,0.00012577,2]
[337666477,1725933043736,-160.946631,0.00012577,2]
[337666479,1725933043745,-160.946631,0.00012577,2]
[337666481,1725933043756,-160.946631,0.00012577,2]
[337666483,1725933043771,-160.946631,0.00012577,2]
[337666485,1725933043781,-160.946631,0.00012577,2]
[337666487,1725933043792,-151.0,0.00012577,2]
[337666489,1725933043801,-151.0,0.00012577,2]
[337666491,1725933043812,-151.0,0.00012577,2]
[337666493,1725933043822,-151.0,0.00012577,2]
[337666495,1725933043832,-5636.16,0.00012577,2]
[337666497,1725933043842,-500.0,0.00012577,2]
[337666499,1725933043852,-1826.48,0.00012577,2]
[337666501,1725933043862,-500.0,0.00012577,2]
[337666503,1725933043873,-2726.67,0.00012577,2]
[337666505,1725933043884,-500.0,0.00012577,2]
[337666507,1725933043894,-6897.75,0.00012577,2]
[337666509,1725933043904,-1773.49,0.00012577,2]
[337666511,1725933043915,-500.0,0.00012577,2]
[337666513,1725933043925,-500.0,0.00012577,2]
[337666515,1725933043935,-1384.4,0.00012577,2]
[337666517,1725933043944,-172.88670604,0.00012577,2]
[337666519,1725933043954,-500.0,0.00012577,2]
[337666521,1725933043964,-4684.34,0.00012577,2]
[337666523,1725933043975,-151.0,0.00012577,2]
[337666525,1725933043985,-151.0,0.00012577,2]
[337666527,1725933043996,-157.493256,0.00012577,2]
[337666529,1725933044006,-5665.53,0.00012577,2]
[337666531,1725933044018,-192.32699,0.00012577,2]
[337666533,1725933044031,-192.32699,0.00012577,2]
[337666535,1725933044040,-192.32699,0.00012577,2]
[337666537,1725933044050,-4977.94,0.00012577,2]
[337666539,1725933044060,-192.32699,0.00012577,2]
[337666541,1725933044070,-192.32699,0.00012577,2]
[337666543,1725933044080,-192.32699,0.00012577,2]
[337666545,1725933044091,-1205.62,0.00012577,2]
[337666547,1725933044101,-5377.93,0.00012577,2]
[337666549,1725933044111,-2656.82,0.00012577,2]
[337666551,1725933044123,-5548.46,0.00012577,2]
[337666553,1725933044133,-3381.38,0.00012577,2]
[337666555,1725933044143,-500.0,0.00012577,2]
[337666557,1725933044153,-238.99195347,0.00012577,2]
[337666559,1725933044164,-1144.15,0.00012577,2]
[337666561,1725933044174,-8364.7,0.00012577,2]
[337666563,1725933044185,-103630.47,0.00012577,2]
[337666565,1725933044194,-500.0,0.00012577,2]
[337666567,1725933044204,-7391.68,0.00012577,2]
[337666569,1725933044214,-504.80996049,0.00012577,2]
[337666571,1725933044224,-500.0,0.00012578,2]
[337666573,1725933044235,-151.0,0.00012578,2]
[337666575,1725933044245,-151.0,0.00012578,2]
[337666577,1725933044256,-151.0,0.00012578,2]
[337666579,1725933044267,-191.877382,0.00012578,2]
[337666581,1725933044278,-151.0,0.00012578,2]
[337666583,1725933044288,-151.0,0.00012578,2]
[337666585,1725933044298,-151.0,0.00012578,2]
[337666587,1725933044308,-151.0,0.00012578,2]
[337666627,1725933044669,-500.0,0.00012578,2]
[337666630,1725933044698,-151.0,0.00012578,2]
[337666632,1725933044708,-500.0,0.00012578,2]
[337666634,1725933044718,-151.0,0.00012578,2]
[337666636,1725933044728,-500.0,0.00012578,2]
[337666638,1725933044738,-151.0,0.00012578,2]
[337666640,1725933044747,-151.0,0.00012578,2]
[337666642,1725933044757,-500.0,0.00012578,2]
[337666644,1725933044767,-151.0,0.00012578,2]
[337666645,1725933044776,-151.0,0.00012578,2]
[337666647,1725933044786,-973.104124,0.00012578,2]
[337666649,1725933044796,-973.104124,0.00012578,2]
[337666651,1725933044805,-151.0,0.00012578,2]
[337666653,1725933044815,-151.0,0.00012578,2]
[337666655,1725933044825,-151.0,0.00012578,2]
[337666657,1725933044835,-151.0,0.00012578,2]
[337666659,1725933044844,-198.575917,0.00012578,2]
[337666661,1725933044854,-198.575917,0.00012578,2]
[337666663,1725933044863,-198.575917,0.00012578,2]
[337666665,1725933044873,-198.575917,0.00012578,2]
[337666667,1725933044882,-574.52,0.00012578,2]
[337666669,1725933044892,-151.0,0.00012578,2]
[337666671,1725933044902,-151.0,0.00012578,2]
[337666673,1725933044911,-151.0,0.00012578,2]
[337666675,1725933044921,-500.0,0.00012578,2]
[337666677,1725933044931,-151.0,0.00012578,2]
[337666679,1725933044940,-151.0,0.00012578,2]
[337666681,1725933044950,-175.345064,0.00012578,2]
[337666683,1725933044962,-500.0,0.00012578,2]
[337666685,1725933044971,-312.377615,0.00012578,2]
[337666687,1725933044981,-312.377615,0.00012578,2]
[337666688,1725933044990,-312.377615,0.00012578,2]
[337666690,1725933045000,-312.377615,0.00012578,2]
[337666692,1725933045009,-312.377615,0.00012578,2]
[337666694,1725933045019,-312.377615,0.00012578,2]
[337666696,1725933045029,-518.384778,0.00012578,2]
[337666698,1725933045038,-518.384778,0.00012578,2]
[337666699,1725933045047,-518.384778,0.00012578,2]
[337666701,1725933045056,-500.0,0.00012578,2]
[337666703,1725933045066,-518.384778,0.00012578,2]
[337666705,1725933045075,-518.384778,0.00012578,2]
[337666707,1725933045084,-518.384778,0.00012578,2]
[337666709,1725933045094,-552.91,0.00012578,2]
[337666711,1725933045103,-253.034483,0.00012578,2]
[337666713,1725933045114,-500.0,0.00012578,2]
[337666715,1725933045123,-151.0,0.00012578,2]
[337666717,1725933045132,-152.355539,0.00012578,2]
[337666719,1725933045142,-2129.09,0.00012578,2]
[337666720,1725933045151,-500.0,0.00012578,2]
[337666723,1725933045161,-500.0,0.00012578,2]
[337666724,1725933045172,-180.014303,0.00012578,2]
[337666726,1725933045182,-180.014303,0.00012578,2]
[337666728,1725933045191,-180.014303,0.00012578,2]
[337666730,1725933045200,-180.014303,0.00012578,2]
[337666732,1725933045209,-180.014303,0.00012578,2]
[337666734,1725933045219,-180.014303,0.00012578,2]
[337666736,1725933045228,-500.0,0.00012578,2]
[337666738,1725933045238,-500.0,0.00012578,2]
[337666740,1725933045247,-151.0,0.00012578,2]
[337666742,1725933045257,-151.0,0.00012578,2]
[337666744,1725933045267,-151.0,0.00012578,2]
[337666746,1725933045277,-151.0,0.00012578,2]
[337666748,1725933045287,-177.609348,0.00012578,2]
[337666750,1725933045297,-500.0,0.00012578,2]
[337666752,1725933045306,-4232.4,0.00012578,2]
[337666754,1725933045315,-151.0,0.00012578,2]
[337666756,1725933045324,-151.0,0.00012578,2]
[337666758,1725933045334,-151.0,0.00012578,2]
[337666760,1725933045343,-151.266051,0.00012578,2]
[337666762,1725933045353,-1479.58,0.00012578,2]
[337666763,1725933045363,-151.0,0.00012578,2]
[337666765,1725933045372,-151.0,0.00012578,2]
[337666767,1725933045381,-151.0,0.00012578,2]
[337666769,1725933045391,-1752.49,0.00012578,2]
[337666771,1725933045400,-203.000913,0.00012578,2]
[337666773,1725933045410,-203.000913,0.00012578,2]
[337666775,1725933045419,-203.000913,0.00012578,2]
[337666777,1725933045428,-203.000913,0.00012578,2]
[337666779,1725933045438,-203.000913,0.00012578,2]
[337666781,1725933045449,-203.000913,0.00012578,2]
[337666783,1725933045459,-3377.42,0.00012578,2]
[337666785,1725933045469,-500.0,0.00012578,2]
[337666787,1725933045479,-554.42,0.00012578,2]
[337666789,1725933045488,-392.055159,0.00012578,2]
[337666791,1725933045498,-392.055159,0.00012578,2]
[337666793,1725933045507,-392.055159,0.00012578,2]
[337666795,1725933045518,-500.0,0.00012578,2]
[337666797,1725933045527,-392.055159,0.00012578,2]
[337666799,1725933045538,-392.055159,0.00012578,2]
[337666801,1725933045547,-392.055159,0.00012578,2]
[337666803,1725933045557,-687.98,0.00012578,2]
[337666805,1725933045566,-425.24143,0.00012578,2]
[337666807,1725933045577,-425.24143,0.00012578,2]
[337666809,1725933045586,-425.24143,0.00012578,2]
[337666811,1725933045595,-2050.43,0.00012578,2]
[337666813,1725933045605,-425.24143,0.00012578,2]
[337666815,1725933045615,-425.24143,0.00012578,2]
[337666817,1725933045625,-425.24143,0.00012578,2]
[337666819,1725933045634,-195.963856,0.00012578,2]
[337666821,1725933045644,-195.963856,0.00012578,2]
[337666823,1725933045653,-195.963856,0.00012578,2]
[337666825,1725933045664,-1619.23,0.00012578,2]
[337666827,1725933045674,-195.963856,0.00012578,2]
[337666829,1725933045685,-195.963856,0.00012578,2]
[337666831,1725933045696,-195.963856,0.00012578,2]
[337666833,1725933045705,-5019.11,0.00012578,2]
[337666835,1725933045715,-6474.87,0.00012578,2]
[337666837,1725933045727,-791.11,0.00012578,2]
[337666839,1725933045736,-214.451037,0.00012578,2]
[337666841,1725933045746,-214.451037,0.00012578,2]
[337666843,1725933045756,-214.451037,0.00012578,2]
[337666845,1725933045767,-214.451037,0.00012578,2]
[337666847,1725933045776,-214.451037,0.00012578,2]
[337666849,1725933045786,-214.451037,0.00012578,2]
[337666851,1725933045796,-500.0,0.00012578,2]
[337666853,1725933045806,-151.0,0.00012578,2]
[337666855,1725933045815,-151.0,0.00012578,2]
[337666857,1725933045825,-151.0,0.00012578,2]
[337666859,1725933045835,-168.160729,0.00012578,2]
[337666861,1725933045845,-3132.89,0.00012578,2]
[337666862,1725933045854,-6576.06,0.00012578,2]
[337666864,1725933045863,-1079.791949,0.00012578,2]
[337666866,1725933045872,-1079.791949,0.00012578,2]
[337666868,1725933045882,-1079.791949,0.00012578,2]
[337666870,1725933045891,-7446.1,0.00012578,2]
[337666872,1725933045902,-4499.68,0.00012578,2]
[337666874,1725933045912,-151.0,0.00012578,2]
[337666876,1725933045921,-151.0,0.00012578,2]
[337666878,1725933045930,-151.0,0.00012578,2]
[337666880,1725933045940,-151.0,0.00012578,2]
[337666882,1725933045953,-151.0,0.00012578,2]
[337666884,1725933045963,-151.0,0.00012578,2]
[337666886,1725933045973,-500.0,0.00012578,2]
[337666888,1725933045982,-500.0,0.00012578,2]
[337666890,1725933045992,-500.0,0.00012578,2]
[337666892,1725933046002,-512.053026,0.00012578,2]
[337666894,1725933046012,-512.053026,0.00012578,2]
[337666896,1725933046022,-512.053026,0.00012578,2]
[337666898,1725933046034,-512.053026,0.00012578,2]
[337666900,1725933046045,-512.053026,0.00012578,2]
[337666902,1725933046055,-512.053026,0.00012578,2]
[337666904,1725933046064,-151.0,0.00012578,2]
[337666906,1725933046074,-151.0,0.00012578,2]
[337666908,1725933046083,-151.0,0.00012578,2]
[337666910,1725933046094,-516.199678,0.00012578,2]
[337666912,1725933046105,-516.199678,0.00012578,2]
[337666914,1725933046116,-516.199678,0.00012578,2]
[337666916,1725933046125,-516.199678,0.00012578,2]
[337666918,1725933046135,-516.199678,0.00012578,2]
[337666920,1725933046147,-516.199678,0.00012578,2]
[337666922,1725933046157,-151.0,0.00012578,2]
[337666924,1725933046167,-151.0,0.00012578,2]
[337666926,1725933046177,-151.0,0.00012578,2]
[337666928,1725933046187,-500.0,0.00012578,2]
[337666930,1725933046197,-7332.320303,0.00012578,2]
[337666932,1725933046207,-7332.320303,0.00012578,2]
[337666934,1725933046217,-7332.320303,0.00012578,2]
[337666936,1725933046226,-7332.320303,0.00012578,2]
[337666938,1725933046238,-1503.33409,0.00012578,2]
[337666940,1725933046248,-151.0,0.00012578,2]
[337666941,1725933046257,-151.0,0.00012578,2]
[337666943,1725933046267,-1503.33409,0.00012578,2]
[337666945,1725933046277,-151.0,0.00012578,2]
[337666947,1725933046287,-1503.33409,0.00012578,2]
[337666949,1725933046297,-1503.33409,0.00012578,2]
[337666951,1725933046307,-264.399148,0.00012578,2]
[337666953,1725933046318,-151.0,0.00012578,2]
[337666955,1725933046328,-151.0,0.00012578,2]
[337666957,1725933046338,-151.0,0.00012578,2]
[337666959,1725933046348,-152.473979,0.00012578,2]
[337666961,1725933046359,-151.0,0.00012578,2]
[337666963,1725933046369,-160.946631,0.00012578,2]
[337666965,1725933046379,-160.946631,0.00012578,2]
[337666967,1725933046389,-151.0,0.00012578,2]
[337666969,1725933046400,-500.0,0.00012578,2]
[337666971,1725933046410,-500.0,0.00012578,2]
[337666973,1725933046419,-500.0,0.00012578,2]
[337666975,1725933046429,-514.77858264,0.00012578,2]
[337666977,1725933046439,-510.78066673,0.00012578,2]
[337666979,1725933046450,-192.32699,0.00012578,2]
[337666982,1725933046461,-192.32699,0.00012578,2]
[337666985,1725933046471,-192.32699,0.00012578,2]
[337666988,1725933046480,-192.32699,0.00012578,2]
[337666990,1725933046491,-151.0,0.00012579,2]
[337666992,1725933046501,-151.0,0.00012579,2]
[337666994,1725933046511,-150.0,0.00012579,2]
[337666995,1725933046521,-150.0,0.00012579,2]
[337666997,1725933046531,-180.014303,0.00012579,2]
[337666999,1725933046541,-180.014303,0.00012579,2]
[337667001,1725933046551,-151.0,0.00012579,2]
[337667003,1725933046560,-848.0,0.00012581,2]
[337667005,1725933046570,-150.0,0.0001259,2]
[337667007,1725933046580,-150.0,0.00012592,2]
[337667009,1725933046590,-151.0,0.00012597,2]
[337667011,1725933046599,-2252.69,0.00012598,2]
[337667012,1725933046609,-2252.69,0.00012598,2]
[337667014,1725933046619,-151.59217,0.00012599,2]
[337667016,1725933046629,-151.0,0.00012599,2]
[337667018,1725933046639,-151.0,0.00012599,2]
[337667020,1725933046649,-151.0,0.00012599,2]
[337667022,1725933046659,-151.0,0.00012599,2]
[337667024,1725933046669,-151.0,0.00012599,2]
[337667026,1725933046679,-151.0,0.00012599,2]
[337667028,1725933046688,-151.0,0.00012599,2]
[337667030,1725933046698,-151.0,0.00012599,2]
[337667031,1725933046708,-151.0,0.00012599,2]
[337667033,1725933046718,-151.0,0.00012599,2]
[337667035,1725933046727,-151.0,0.00012599,2]
[337667037,1725933046738,-151.0,0.00012599,2]
[337667039,1725933046748,-151.0,0.00012599,2]
[337667041,1725933046758,-151.0,0.00012599,2]
[337667043,1725933046768,-151.0,0.00012599,2]
[337667045,1725933046778,-151.0,0.00012599,2]
[337667047,1725933046788,-151.0,0.00012599,2]
[337667049,1725933046798,-151.0,0.00012599,2]
[337667051,1725933046808,-151.0,0.00012599,2]
[337667053,1725933046818,-151.0,0.00012599,2]
[337667055,1725933046828,-151.0,0.00012599,2]
[337667057,1725933046837,-151.0,0.00012599,2]
[337667059,1725933046847,-151.0,0.00012599,2]
[337667061,1725933046856,-151.0,0.00012599,2]